[Event "Titled Tuesday Blitz April 19 Early 2022"]
[White "Przybylski, Wojciech"]
[Black "Yeletsky, Ivan"]
[WhiteFideId "1117599"]
[BlackFideId "24180327"]
[WhiteElo "2133"]
[BlackElo "2319"]
[Result "0-1"]
[Round "03"]
[TimeControl "180+1"]
[Date "2022.04.19"]
[WhiteClock "0:00:01"]
[BlackClock "0:00:37"]

1. d4 {[%clk 0:02:59]}  f5 {[%clk 0:02:58]} 2. g4 {[%clk 0:02:57]}  fxg4 {[%clk 0:02:56]} 3. e4 {[%clk 0:02:57]}  d5 {[%clk 0:02:56]} 4. e5 {[%clk 0:02:55]}  c5 {[%clk 0:02:54]} 5. c3 {[%clk 0:02:54]}  Nc6 {[%clk 0:02:54]} 6. Bg2 {[%clk 0:02:53]}  Bf5 {[%clk 0:02:43]} 7. Ne2 {[%clk 0:02:43]}  e6 {[%clk 0:02:36]} 8. Ng3 {[%clk 0:02:41]}  Nge7 {[%clk 0:02:33]} 9. O-O {[%clk 0:02:33]}  h5 {[%clk 0:02:29]} 10. Bg5 {[%clk 0:02:31]}  Qd7 {[%clk 0:02:23]} 11. Bxe7 {[%clk 0:02:17]}  Nxe7 {[%clk 0:02:22]} 12. dxc5 {[%clk 0:02:16]}  Bg6 {[%clk 0:02:06]} 13. Ne2 {[%clk 0:02:00]}  Nf5 {[%clk 0:01:58]} 14. Nf4 {[%clk 0:01:54]}  Bf7 {[%clk 0:01:58]} 15. Re1 {[%clk 0:01:29]}  Bxc5 {[%clk 0:01:39]} 16. b4 {[%clk 0:01:12]}  Bb6 {[%clk 0:01:39]} 17. a4 {[%clk 0:01:12]}  O-O {[%clk 0:01:29]} 18. a5 {[%clk 0:01:07]}  Bc7 {[%clk 0:01:29]} 19. h3 {[%clk 0:01:07]}  g3 {[%clk 0:01:17]} 20. fxg3 {[%clk 0:01:01]}  Nxg3 {[%clk 0:01:18]} 21. Kh2 {[%clk 0:00:56]}  Qe7 {[%clk 0:01:10]} 22. Qf3 {[%clk 0:00:46]}  h4 {[%clk 0:01:07]} 23. Qg4 {[%clk 0:00:40]}  g5 {[%clk 0:01:05]} 24. Nd2 {[%clk 0:00:27]}  Kh8 {[%clk 0:01:00]} 25. Nf3 {[%clk 0:00:20]}  gxf4 {[%clk 0:00:59]} 26. Qxf4 {[%clk 0:00:18]}  Nf5 {[%clk 0:00:56]} 27. Ng5 {[%clk 0:00:16]}  Rg8 {[%clk 0:00:52]} 28. Nf3 {[%clk 0:00:09]}  Rg3 {[%clk 0:00:51]} 29. Nd4 {[%clk 0:00:07]}  Rag8 {[%clk 0:00:52]} 30. Re2 {[%clk 0:00:06]}  Qg5 {[%clk 0:00:49]} 31. Qxg5 {[%clk 0:00:06]}  R8xg5 {[%clk 0:00:50]} 32. b5 {[%clk 0:00:03]}  Rxc3 {[%clk 0:00:49]} 33. b6 {[%clk 0:00:03]}  Bb8 {[%clk 0:00:47]} 34. Nf3 {[%clk 0:00:03]}  Rg3 {[%clk 0:00:44]} 35. Nd2 {[%clk 0:00:01]}  axb6 {[%clk 0:00:44]} 36. Nf1 {[%clk 0:00:02]}  Rg5 {[%clk 0:00:37]} 37. a6 {[%clk 0:00:02]}  Nd4 {[%clk 0:00:37]} 38. Rd2 {[%clk 0:00:01]}  Bxe5+ {[%clk 0:00:37]} 0-1


[Site "https://www.chess.com"]

[Event "Titled Tuesday Blitz April 19 Early 2022"]
[White "Redor, Menandro"]
[Black "Todorovic, Bojan"]
[WhiteFideId "5222010"]
[BlackFideId "917087"]
[WhiteElo "1986"]
[BlackElo "2266"]
[Result "1-0"]
[Round "03"]
[TimeControl "180+1"]
[Date "2022.04.19"]
[WhiteClock "0:00:14"]
[BlackClock "0:00:03"]

1. c3 {[%clk 0:02:51]}  d5 {[%clk 0:02:54]} 2. d4 {[%clk 0:02:52]}  Nf6 {[%clk 0:02:49]} 3. Nf3 {[%clk 0:02:53]}  Bf5 {[%clk 0:02:46]} 4. Bg5 {[%clk 0:02:40]}  Nbd7 {[%clk 0:02:41]} 5. Nbd2 {[%clk 0:02:40]}  e6 {[%clk 0:02:39]} 6. e3 {[%clk 0:02:36]}  Be7 {[%clk 0:02:36]} 7. Be2 {[%clk 0:02:34]}  O-O {[%clk 0:02:33]} 8. O-O {[%clk 0:02:32]}  h6 {[%clk 0:02:19]} 9. Bh4 {[%clk 0:02:29]}  c5 {[%clk 0:02:14]} 10. Re1 {[%clk 0:02:25]}  Qb6 {[%clk 0:02:10]} 11. b3 {[%clk 0:02:08]}  Qa5 {[%clk 0:02:01]} 12. c4 {[%clk 0:02:03]}  Rac8 {[%clk 0:01:40]} 13. a3 {[%clk 0:01:45]}  Qc3 {[%clk 0:01:29]} 14. cxd5 {[%clk 0:01:23]}  exd5 {[%clk 0:01:23]} 15. Ne5 {[%clk 0:00:57]}  cxd4 {[%clk 0:01:16]} 16. Nxd7 {[%clk 0:00:53]}  Bxd7 {[%clk 0:01:16]} 17. exd4 {[%clk 0:00:44]}  Qxd4 {[%clk 0:01:16]} 18. Nf3 {[%clk 0:00:36]}  Qxd1 {[%clk 0:01:11]} 19. Raxd1 {[%clk 0:00:34]}  Rfe8 {[%clk 0:01:05]} 20. Bf1 {[%clk 0:00:17]}  Bxa3 {[%clk 0:00:55]} 21. Bxf6 {[%clk 0:00:14]}  gxf6 {[%clk 0:00:55]} 22. Rxd5 {[%clk 0:00:13]}  Rxe1 {[%clk 0:00:53]} 23. Nxe1 {[%clk 0:00:13]}  Be6 {[%clk 0:00:51]} 24. Ra5 {[%clk 0:00:11]}  Bb4 {[%clk 0:00:51]} 25. Ra1 {[%clk 0:00:11]}  a5 {[%clk 0:00:37]} 26. Nd3 {[%clk 0:00:11]}  Bc3 {[%clk 0:00:32]} 27. Rb1 {[%clk 0:00:10]}  b5 {[%clk 0:00:28]} 28. Nf4 {[%clk 0:00:09]}  a4 {[%clk 0:00:24]} 29. Nxe6 {[%clk 0:00:08]}  fxe6 {[%clk 0:00:24]} 30. bxa4 {[%clk 0:00:09]}  bxa4 {[%clk 0:00:24]} 31. Rb6 {[%clk 0:00:05]}  a3 {[%clk 0:00:20]} 32. Ra6 {[%clk 0:00:05]}  Bb2 {[%clk 0:00:19]} 33. h3 {[%clk 0:00:04]}  Rc1 {[%clk 0:00:17]} 34. g4 {[%clk 0:00:03]}  Rc2 {[%clk 0:00:11]} 35. Kg2 {[%clk 0:00:04]}  Bd4 {[%clk 0:00:11]} 36. Bb5 {[%clk 0:00:04]}  Rxf2+ {[%clk 0:00:10]} 37. Kg3 {[%clk 0:00:03]}  Rb2 {[%clk 0:00:10]} 38. Bc4 {[%clk 0:00:04]}  Kg7 {[%clk 0:00:09]} 39. Bxe6 {[%clk 0:00:05]}  Bc5 {[%clk 0:00:06]} 40. h4 {[%clk 0:00:06]}  Kf8 {[%clk 0:00:04]} 41. h5 {[%clk 0:00:07]}  Ke7 {[%clk 0:00:04]} 42. Kf3 {[%clk 0:00:08]}  Bd6 {[%clk 0:00:04]} 43. Ke4 {[%clk 0:00:09]}  Rb4+ {[%clk 0:00:04]} 44. Kf5 {[%clk 0:00:10]}  Rf4+ {[%clk 0:00:05]} 45. Kg6 {[%clk 0:00:10]}  Rf2 {[%clk 0:00:04]} 46. Ra4 {[%clk 0:00:11]}  a2 {[%clk 0:00:04]} 47. Bf5 {[%clk 0:00:11]}  Be5 {[%clk 0:00:05]} 48. Rxa2 {[%clk 0:00:11]}  Rxa2 {[%clk 0:00:04]} 49. Kxh6 {[%clk 0:00:12]}  Ra8 {[%clk 0:00:04]} 50. Kg7 {[%clk 0:00:13]}  Ra7 {[%clk 0:00:04]} 51. h6 {[%clk 0:00:14]}  Kd6+ {[%clk 0:00:04]} 52. Kg6 {[%clk 0:00:13]}  Bf4 {[%clk 0:00:03]} 53. h7 {[%clk 0:00:14]}  Ra8 {[%clk 0:00:03]} 54. Kg7 {[%clk 0:00:14]}  Ke5 {[%clk 0:00:03]} 55. h8=Q {[%clk 0:00:15]}  Bg5 {[%clk 0:00:03]} 56. Qxa8 {[%clk 0:00:14]} 1-0


[Site "https://www.chess.com"]

[Event "Titled Tuesday Blitz April 19 Early 2022"]
[White "Rom, Jasper"]
[Black "Iskusnyh, Sergei"]
[WhiteFideId "2023733"]
[BlackFideId "4120027"]
[WhiteElo "2233"]
[BlackElo "2492"]
[Result "0-1"]
[Round "03"]
[TimeControl "180+1"]
[Date "2022.04.19"]
[WhiteClock "0:00:02"]
[BlackClock "0:01:12"]

1. e4 {[%clk 0:03:00]}  e6 {[%clk 0:02:51]} 2. d4 {[%clk 0:02:59]}  d5 {[%clk 0:02:51]} 3. Bd3 {[%clk 0:02:58]}  c5 {[%clk 0:02:50]} 4. exd5 {[%clk 0:02:57]}  exd5 {[%clk 0:02:51]} 5. Nf3 {[%clk 0:02:56]}  Nf6 {[%clk 0:02:48]} 6. O-O {[%clk 0:02:55]}  Nc6 {[%clk 0:02:48]} 7. Re1+ {[%clk 0:02:43]}  Be7 {[%clk 0:02:47]} 8. dxc5 {[%clk 0:02:43]}  O-O {[%clk 0:02:48]} 9. Be3 {[%clk 0:02:42]}  Ng4 {[%clk 0:02:47]} 10. Qd2 {[%clk 0:00:30]}  Nxe3 {[%clk 0:02:44]} 11. Qxe3 {[%clk 0:00:30]}  Qa5 {[%clk 0:02:43]} 12. Nbd2 {[%clk 0:00:21]}  Bxc5 {[%clk 0:02:32]} 13. Qf4 {[%clk 0:00:20]}  Qb4 {[%clk 0:02:12]} 14. Qxb4 {[%clk 0:00:17]}  Nxb4 {[%clk 0:02:10]} 15. Nb3 {[%clk 0:00:16]}  Nxd3 {[%clk 0:02:04]} 16. cxd3 {[%clk 0:00:17]}  Bb4 {[%clk 0:01:58]} 17. Re5 {[%clk 0:00:15]}  Rd8 {[%clk 0:01:50]} 18. a3 {[%clk 0:00:12]}  Bd6 {[%clk 0:01:49]} 19. Re3 {[%clk 0:00:11]}  Bd7 {[%clk 0:01:44]} 20. Rae1 {[%clk 0:00:07]}  Kf8 {[%clk 0:01:39]} 21. Nfd4 {[%clk 0:00:05]}  Rac8 {[%clk 0:01:36]} 22. g3 {[%clk 0:00:05]}  g6 {[%clk 0:01:26]} 23. Kg2 {[%clk 0:00:05]}  h5 {[%clk 0:01:25]} 24. f4 {[%clk 0:00:05]}  Re8 {[%clk 0:01:15]} 25. Rxe8+ {[%clk 0:00:04]}  Bxe8 {[%clk 0:01:13]} 26. Re2 {[%clk 0:00:02]}  Ba4 {[%clk 0:01:12]} 0-1


[Site "https://www.chess.com"]

[Event "Titled Tuesday Blitz April 19 Early 2022"]
[White "Rustemov, Alexander"]
[Black "Shohat, Yotam"]
[WhiteFideId "4119002"]
[BlackFideId "2813955"]
[WhiteElo "2768"]
[BlackElo "2119"]
[Result "1-0"]
[Round "03"]
[TimeControl "180+1"]
[Date "2022.04.19"]
[WhiteClock "0:00:20"]
[BlackClock "0:00:02"]

1. d4 {[%clk 0:03:00]}  Nf6 {[%clk 0:03:00]} 2. c4 {[%clk 0:03:01]}  g6 {[%clk 0:02:59]} 3. Nf3 {[%clk 0:03:02]}  Bg7 {[%clk 0:02:59]} 4. g3 {[%clk 0:03:02]}  O-O {[%clk 0:02:59]} 5. Bg2 {[%clk 0:03:03]}  d6 {[%clk 0:02:59]} 6. Nc3 {[%clk 0:03:03]}  Nbd7 {[%clk 0:02:59]} 7. O-O {[%clk 0:03:04]}  e5 {[%clk 0:03:00]} 8. e4 {[%clk 0:03:04]}  c6 {[%clk 0:02:59]} 9. h3 {[%clk 0:03:04]}  Re8 {[%clk 0:02:56]} 10. Re1 {[%clk 0:03:03]}  exd4 {[%clk 0:02:54]} 11. Nxd4 {[%clk 0:03:03]}  Nc5 {[%clk 0:02:54]} 12. Bf4 {[%clk 0:02:59]}  Nh5 {[%clk 0:02:40]} 13. Be3 {[%clk 0:02:58]}  Nf6 {[%clk 0:02:35]} 14. Qc2 {[%clk 0:02:57]}  Nfd7 {[%clk 0:02:16]} 15. Rad1 {[%clk 0:02:56]}  h5 {[%clk 0:02:07]} 16. f4 {[%clk 0:02:54]}  Qe7 {[%clk 0:01:54]} 17. Bf2 {[%clk 0:02:52]}  Qf8 {[%clk 0:01:48]} 18. Nb3 {[%clk 0:02:39]}  a5 {[%clk 0:01:35]} 19. Nxc5 {[%clk 0:02:33]}  Nxc5 {[%clk 0:01:36]} 20. Bd4 {[%clk 0:02:25]}  Be6 {[%clk 0:01:24]} 21. b3 {[%clk 0:02:24]}  a4 {[%clk 0:01:23]} 22. Bxg7 {[%clk 0:02:20]}  Qxg7 {[%clk 0:00:50]} 23. Rxd6 {[%clk 0:02:18]}  axb3 {[%clk 0:00:49]} 24. axb3 {[%clk 0:02:19]}  Ra3 {[%clk 0:00:42]} 25. Rb1 {[%clk 0:02:17]}  Bxc4 {[%clk 0:00:36]} 26. e5 {[%clk 0:01:57]}  Rxb3 {[%clk 0:00:28]} 27. Rbd1 {[%clk 0:01:55]}  Qf8 {[%clk 0:00:16]} 28. Qd2 {[%clk 0:01:25]}  Be6 {[%clk 0:00:15]} 29. Qd4 {[%clk 0:01:22]}  Na6 {[%clk 0:00:10]} 30. Ne4 {[%clk 0:01:22]}  Kg7 {[%clk 0:00:07]} 31. g4 {[%clk 0:01:20]}  hxg4 {[%clk 0:00:07]} 32. hxg4 {[%clk 0:01:21]}  Rb4 {[%clk 0:00:07]} 33. Qc3 {[%clk 0:01:14]}  Rc4 {[%clk 0:00:07]} 34. Qa1 {[%clk 0:01:12]}  Qh8 {[%clk 0:00:04]} 35. f5 {[%clk 0:01:07]}  gxf5 {[%clk 0:00:04]} 36. gxf5 {[%clk 0:01:08]}  Bxf5 {[%clk 0:00:02]} 37. e6+ {[%clk 0:01:08]}  Kg6 {[%clk 0:00:01]} 38. exf7+ {[%clk 0:01:02]}  Kxf7 {[%clk 0:00:02]} 39. Rf6+ {[%clk 0:01:00]}  Kg8 {[%clk 0:00:03]} 40. Rxf5 {[%clk 0:00:57]}  Qxa1 {[%clk 0:00:04]} 41. Rxa1 {[%clk 0:00:56]}  Rcxe4 {[%clk 0:00:04]} 42. Bxe4 {[%clk 0:00:54]}  Rxe4 {[%clk 0:00:05]} 43. Kf2 {[%clk 0:00:45]}  Rg4 {[%clk 0:00:04]} 44. Rb1 {[%clk 0:00:39]}  b5 {[%clk 0:00:02]} 45. Rf6 {[%clk 0:00:37]}  Nb4 {[%clk 0:00:02]} 46. Kf3 {[%clk 0:00:34]}  Nd5 {[%clk 0:00:03]} 47. Rxc6 {[%clk 0:00:30]}  Rc4 {[%clk 0:00:03]} 48. Rd6 {[%clk 0:00:29]}  Nc3 {[%clk 0:00:02]} 49. Re1 {[%clk 0:00:24]}  Kf7 {[%clk 0:00:03]} 50. Rb6 {[%clk 0:00:21]}  b4 {[%clk 0:00:02]} 51. Rh1 {[%clk 0:00:21]}  Ke7 {[%clk 0:00:01]} 52. Rh7+ {[%clk 0:00:20]}  Kd8 {[%clk 0:00:01]} 53. Rb8+ {[%clk 0:00:21]}  Rc8 {[%clk 0:00:02]} 54. Rh8+ {[%clk 0:00:21]}  Kd7 {[%clk 0:00:02]} 55. Rhxc8 {[%clk 0:00:21]}  Nd5 {[%clk 0:00:02]} 56. Rd8+ {[%clk 0:00:20]}  Kc6 {[%clk 0:00:02]} 57. Rxd5 {[%clk 0:00:20]} 1-0


[Site "https://www.chess.com"]

[Event "Titled Tuesday Blitz April 19 Early 2022"]
[White "Saksham, Rautela"]
[Black "Meshkovs, Nikita"]
[WhiteFideId "35046977"]
[BlackFideId "11602740"]
[WhiteElo "1990"]
[BlackElo "2506"]
[Result "0-1"]
[Round "03"]
[TimeControl "180+1"]
[Date "2022.04.19"]
[WhiteClock "0:00:06"]
[BlackClock "0:00:20"]

1. e4 {[%clk 0:03:00]}  c5 {[%clk 0:02:59]} 2. Nf3 {[%clk 0:03:01]}  Nc6 {[%clk 0:02:59]} 3. Bb5 {[%clk 0:02:59]}  g6 {[%clk 0:02:59]} 4. O-O {[%clk 0:02:58]}  Bg7 {[%clk 0:02:57]} 5. Re1 {[%clk 0:02:54]}  e5 {[%clk 0:02:54]} 6. c3 {[%clk 0:02:54]}  Nge7 {[%clk 0:02:49]} 7. d3 {[%clk 0:02:46]}  O-O {[%clk 0:02:47]} 8. Nbd2 {[%clk 0:02:41]}  a6 {[%clk 0:02:33]} 9. Ba4 {[%clk 0:02:35]}  d6 {[%clk 0:02:32]} 10. Nf1 {[%clk 0:02:32]}  h6 {[%clk 0:02:23]} 11. Be3 {[%clk 0:02:29]}  b5 {[%clk 0:02:20]} 12. Bb3 {[%clk 0:02:23]}  Rb8 {[%clk 0:02:04]} 13. d4 {[%clk 0:02:17]}  exd4 {[%clk 0:01:54]} 14. cxd4 {[%clk 0:02:18]}  c4 {[%clk 0:01:43]} 15. Bc2 {[%clk 0:02:18]}  Bg4 {[%clk 0:01:33]} 16. Qd2 {[%clk 0:01:44]}  Bxf3 {[%clk 0:01:27]} 17. gxf3 {[%clk 0:01:45]}  Qd7 {[%clk 0:01:28]} 18. Kg2 {[%clk 0:01:31]}  d5 {[%clk 0:01:14]} 19. Ng3 {[%clk 0:01:17]}  dxe4 {[%clk 0:00:59]} 20. Bxe4 {[%clk 0:01:07]}  Rbd8 {[%clk 0:00:35]} 21. Rad1 {[%clk 0:00:57]}  Kh7 {[%clk 0:00:35]} 22. Ne2 {[%clk 0:00:28]}  f5 {[%clk 0:00:32]} 23. Bb1 {[%clk 0:00:27]}  Nd5 {[%clk 0:00:32]} 24. Nf4 {[%clk 0:00:22]}  Rfe8 {[%clk 0:00:32]} 25. Nxd5 {[%clk 0:00:19]}  Qxd5 {[%clk 0:00:33]} 26. Bf4 {[%clk 0:00:18]}  Nxd4 {[%clk 0:00:33]} 27. Re3 {[%clk 0:00:13]}  Ne6 {[%clk 0:00:28]} 28. Rxe6 {[%clk 0:00:10]}  Qxe6 {[%clk 0:00:26]} 29. Qxd8 {[%clk 0:00:10]}  Rxd8 {[%clk 0:00:27]} 30. Rxd8 {[%clk 0:00:10]}  Bxb2 {[%clk 0:00:25]} 31. Ra8 {[%clk 0:00:07]}  Bd4 {[%clk 0:00:23]} 32. Rb8 {[%clk 0:00:06]}  Qe1 {[%clk 0:00:20]} 33. Rb7+ {[%clk 0:00:06]}  Kg8 {[%clk 0:00:20]} 0-1


[Site "https://www.chess.com"]

[Event "Titled Tuesday Blitz April 19 Early 2022"]
[White "Salem, A.R. Saleh"]
[Black "Karas, Marek"]
[WhiteFideId "9301348"]
[BlackFideId "14928558"]
[WhiteElo "2657"]
[BlackElo "2271"]
[Result "1-0"]
[Round "03"]
[TimeControl "180+1"]
[Date "2022.04.19"]
[WhiteClock "0:02:20"]
[BlackClock "0:00:26"]

1. Nf3 {[%clk 0:03:00]}  Nf6 {[%clk 0:02:58]} 2. c4 {[%clk 0:03:01]}  b6 {[%clk 0:02:55]} 3. g3 {[%clk 0:03:00]}  Bb7 {[%clk 0:02:55]} 4. Bg2 {[%clk 0:03:01]}  e6 {[%clk 0:02:54]} 5. O-O {[%clk 0:03:01]}  Be7 {[%clk 0:02:54]} 6. d4 {[%clk 0:03:02]}  O-O {[%clk 0:02:53]} 7. Re1 {[%clk 0:03:03]}  d5 {[%clk 0:02:49]} 8. cxd5 {[%clk 0:03:04]}  exd5 {[%clk 0:02:48]} 9. Nc3 {[%clk 0:03:04]}  Nbd7 {[%clk 0:02:47]} 10. Bf4 {[%clk 0:03:04]}  Re8 {[%clk 0:02:23]} 11. Nb5 {[%clk 0:03:01]}  Rc8 {[%clk 0:02:16]} 12. Nxa7 {[%clk 0:03:01]}  Ra8 {[%clk 0:02:15]} 13. Nb5 {[%clk 0:03:02]}  Rc8 {[%clk 0:02:15]} 14. Rc1 {[%clk 0:03:02]}  c6 {[%clk 0:02:06]} 15. Na7 {[%clk 0:03:03]}  Ra8 {[%clk 0:02:03]} 16. Nxc6 {[%clk 0:03:02]}  Bxc6 {[%clk 0:02:03]} 17. Rxc6 {[%clk 0:03:02]}  Rxa2 {[%clk 0:02:03]} 18. Qb3 {[%clk 0:03:03]}  Ra8 {[%clk 0:02:00]} 19. Rec1 {[%clk 0:02:59]}  Bf8 {[%clk 0:01:50]} 20. Ne5 {[%clk 0:02:58]}  Ne4 {[%clk 0:01:12]} 21. Bxe4 {[%clk 0:02:57]}  Nxe5 {[%clk 0:00:53]} 22. Bxh7+ {[%clk 0:02:54]}  Kxh7 {[%clk 0:00:48]} 23. dxe5 {[%clk 0:02:54]}  g5 {[%clk 0:00:37]} 24. Qd3+ {[%clk 0:02:54]}  Kg7 {[%clk 0:00:35]} 25. Be3 {[%clk 0:02:37]}  Re6 {[%clk 0:00:26]} 26. Qf5 {[%clk 0:02:20]} 1-0


[Site "https://www.chess.com"]

[Event "Titled Tuesday Blitz April 19 Early 2022"]
[White "Sanchez Alvares, Kelvin Antonio"]
[Black "Dwilewicz, Katarzyna"]
[WhiteFideId "3906680"]
[BlackFideId "1148486"]
[WhiteElo "2193"]
[BlackElo "1907"]
[Result "1-0"]
[Round "03"]
[TimeControl "180+1"]
[Date "2022.04.19"]
[WhiteClock "0:00:17"]
[BlackClock "0:00:05"]

1. e4 {[%clk 0:03:00]}  c5 {[%clk 0:02:59]} 2. Nf3 {[%clk 0:03:00]}  d6 {[%clk 0:02:58]} 3. d4 {[%clk 0:03:00]}  cxd4 {[%clk 0:02:59]} 4. Nxd4 {[%clk 0:03:01]}  Nf6 {[%clk 0:02:59]} 5. Nc3 {[%clk 0:03:01]}  a6 {[%clk 0:02:59]} 6. f3 {[%clk 0:03:00]}  e5 {[%clk 0:02:55]} 7. Nb3 {[%clk 0:02:58]}  Be6 {[%clk 0:02:42]} 8. Be3 {[%clk 0:02:55]}  Be7 {[%clk 0:02:39]} 9. Qd2 {[%clk 0:02:54]}  O-O {[%clk 0:02:36]} 10. Nd5 {[%clk 0:02:54]}  Nxd5 {[%clk 0:02:32]} 11. exd5 {[%clk 0:02:55]}  Bf5 {[%clk 0:02:25]} 12. Be2 {[%clk 0:02:54]}  Nd7 {[%clk 0:02:23]} 13. O-O {[%clk 0:02:51]}  Rc8 {[%clk 0:02:18]} 14. c4 {[%clk 0:02:44]}  Bg6 {[%clk 0:02:10]} 15. Na5 {[%clk 0:02:37]}  Qc7 {[%clk 0:02:02]} 16. b4 {[%clk 0:02:19]}  f5 {[%clk 0:02:02]} 17. Rac1 {[%clk 0:02:16]}  f4 {[%clk 0:01:58]} 18. Bf2 {[%clk 0:02:16]}  Bd8 {[%clk 0:01:39]} 19. Rfd1 {[%clk 0:02:10]}  b6 {[%clk 0:01:19]} 20. Nc6 {[%clk 0:02:06]}  Nb8 {[%clk 0:01:19]} 21. c5 {[%clk 0:02:02]}  bxc5 {[%clk 0:01:11]} 22. bxc5 {[%clk 0:02:00]}  Nxc6 {[%clk 0:01:10]} 23. dxc6 {[%clk 0:01:59]}  dxc5 {[%clk 0:00:53]} 24. Bxa6 {[%clk 0:01:48]}  Rb8 {[%clk 0:00:38]} 25. Bxc5 {[%clk 0:01:46]}  Rf6 {[%clk 0:00:25]} 26. Bb7 {[%clk 0:01:31]}  Be8 {[%clk 0:00:19]} 27. Bd6 {[%clk 0:01:20]}  Qb6+ {[%clk 0:00:19]} 28. Bc5 {[%clk 0:01:00]}  Qc7 {[%clk 0:00:19]} 29. Bd6 {[%clk 0:00:40]}  Qb6+ {[%clk 0:00:19]} 30. Qf2 {[%clk 0:00:40]}  Rxd6 {[%clk 0:00:10]} 31. Rxd6 {[%clk 0:00:35]}  Qxf2+ {[%clk 0:00:06]} 32. Kxf2 {[%clk 0:00:33]}  Bc7 {[%clk 0:00:07]} 33. Rdd1 {[%clk 0:00:28]}  Kf7 {[%clk 0:00:08]} 34. a4 {[%clk 0:00:27]}  Ke7 {[%clk 0:00:08]} 35. Ra1 {[%clk 0:00:26]}  Ba5 {[%clk 0:00:08]} 36. Rd5 {[%clk 0:00:24]}  Bc3 {[%clk 0:00:07]} 37. Re1 {[%clk 0:00:20]}  Bxc6 {[%clk 0:00:03]} 38. Bxc6 {[%clk 0:00:19]}  Bxe1+ {[%clk 0:00:03]} 39. Kxe1 {[%clk 0:00:19]}  Ke6 {[%clk 0:00:04]} 40. Rd2 {[%clk 0:00:18]}  Rb6 {[%clk 0:00:04]} 41. Bb5 {[%clk 0:00:18]}  Rb8 {[%clk 0:00:04]} 42. Ke2 {[%clk 0:00:18]}  Ra8 {[%clk 0:00:04]} 43. Ra2 {[%clk 0:00:18]}  Ra5 {[%clk 0:00:04]} 44. Bd3 {[%clk 0:00:18]}  g5 {[%clk 0:00:05]} 45. Bxh7 {[%clk 0:00:18]}  Kd5 {[%clk 0:00:05]} 46. Bd3 {[%clk 0:00:18]}  Kd4 {[%clk 0:00:05]} 47. Bb5 {[%clk 0:00:18]}  Kc3 {[%clk 0:00:05]} 48. Rd2 {[%clk 0:00:17]}  Kb4 {[%clk 0:00:05]} 49. Rd5 {[%clk 0:00:17]}  g4 {[%clk 0:00:03]} 50. Rxe5 {[%clk 0:00:17]}  gxf3+ {[%clk 0:00:03]} 51. Kxf3 {[%clk 0:00:17]}  Ra8 {[%clk 0:00:04]} 52. Kxf4 {[%clk 0:00:17]}  Rf8+ {[%clk 0:00:05]} 53. Rf5 {[%clk 0:00:17]} 1-0


[Site "https://www.chess.com"]

[Event "Titled Tuesday Blitz April 19 Early 2022"]
[White "Sapunov, Evgeny"]
[Black "Al-Tarboush, Ward"]
[WhiteFideId "4126661"]
[BlackFideId "7601450"]
[WhiteElo "2470"]
[BlackElo "2276"]
[Result "0-1"]
[Round "03"]
[TimeControl "180+1"]
[Date "2022.04.19"]
[WhiteClock "0:00:10"]
[BlackClock "0:00:17"]

1. c4 {[%clk 0:02:57]}  c5 {[%clk 0:02:45]} 2. Nf3 {[%clk 0:02:57]}  Nc6 {[%clk 0:02:43]} 3. Nc3 {[%clk 0:02:57]}  e5 {[%clk 0:02:42]} 4. e3 {[%clk 0:02:57]}  Nf6 {[%clk 0:02:41]} 5. d4 {[%clk 0:02:58]}  e4 {[%clk 0:02:41]} 6. Nd2 {[%clk 0:02:57]}  cxd4 {[%clk 0:02:39]} 7. exd4 {[%clk 0:02:58]}  Bb4 {[%clk 0:02:40]} 8. Nb3 {[%clk 0:02:58]}  O-O {[%clk 0:02:39]} 9. Bf4 {[%clk 0:02:58]}  d5 {[%clk 0:02:37]} 10. c5 {[%clk 0:02:58]}  Bg4 {[%clk 0:02:37]} 11. Qd2 {[%clk 0:02:58]}  Re8 {[%clk 0:02:34]} 12. Bb5 {[%clk 0:02:57]}  a6 {[%clk 0:02:32]} 13. Bxc6 {[%clk 0:02:57]}  bxc6 {[%clk 0:02:33]} 14. O-O {[%clk 0:02:55]}  Nh5 {[%clk 0:02:31]} 15. Be3 {[%clk 0:02:52]}  Qf6 {[%clk 0:02:26]} 16. h3 {[%clk 0:02:47]}  Bd7 {[%clk 0:02:26]} 17. a3 {[%clk 0:02:43]}  Bxc3 {[%clk 0:02:24]} 18. bxc3 {[%clk 0:02:44]}  Qg6 {[%clk 0:02:23]} 19. Kh2 {[%clk 0:02:42]}  f5 {[%clk 0:02:18]} 20. Rab1 {[%clk 0:02:27]}  h6 {[%clk 0:02:10]} 21. Na5 {[%clk 0:02:26]}  Qf6 {[%clk 0:02:10]} 22. Bf4 {[%clk 0:02:20]}  g5 {[%clk 0:02:09]} 23. Bd6 {[%clk 0:02:18]}  f4 {[%clk 0:02:05]} 24. Rb7 {[%clk 0:02:15]}  Qe6 {[%clk 0:02:05]} 25. c4 {[%clk 0:02:05]}  f3 {[%clk 0:01:34]} 26. cxd5 {[%clk 0:02:00]}  cxd5 {[%clk 0:01:34]} 27. g4 {[%clk 0:01:54]}  Nf6 {[%clk 0:01:34]} 28. Rg1 {[%clk 0:01:51]}  e3 {[%clk 0:01:21]} 29. Qd3 {[%clk 0:01:21]}  Ne4 {[%clk 0:01:15]} 30. Qxe3 {[%clk 0:01:17]}  Bb5 {[%clk 0:00:42]} 31. Rc7 {[%clk 0:00:46]}  Qf6 {[%clk 0:00:37]} 32. Qc1 {[%clk 0:00:20]}  Qxd4 {[%clk 0:00:26]} 33. Bg3 {[%clk 0:00:10]}  Nxg3 {[%clk 0:00:21]} 34. fxg3 {[%clk 0:00:11]}  Qf2+ {[%clk 0:00:19]} 35. Kh1 {[%clk 0:00:10]}  Re2 {[%clk 0:00:17]} 0-1


[Site "https://www.chess.com"]